fUSD/lending_fUSD_20250415
["ID","MTS","AMOUNT","RATE_DAILY","PERIOD"]
[358106498,1744723832411,-284.23252147,0.000177,2]
[358106499,1744723832423,-13180.8176265,0.000177,2]
[358106500,1744723832459,-670.41993916,0.000177,2]
[358106501,1744723832471,-3721.06205762,0.000177,2]
[358106502,1744723832520,-385.1781132,0.000177,2]
[358106503,1744723832532,-639.900128,0.000177,2]
[358106528,1744723838455,-1132.17,0.000177,2]
[358106529,1744723838572,-1147.83,0.000177,2]
[358106530,1744723838634,-569.24434349,0.000177,2]
[358106531,1744723838643,-80.66841595,0.000177,2]
[358106532,1744723838655,-95.58473389,0.000177,2]
[358106542,1744723838889,-2500.0,0.000177,2]
[358106545,1744723838899,-4462.67247942,0.000177,2]
[358106547,1744723838909,-1037.7507,0.000177,2]
[358106549,1744723838920,-6702.6251757,0.000177,2]
[358106550,1744723838929,-1000.0,0.000177,2]
[358106551,1744723838939,-6702.62517563,0.00017722,2]
[358106552,1744723838948,-508.09,0.00017733,2]
[358106553,1744723838958,-1000.0,0.00017733,2]
[358106554,1744723838967,-6702.62517563,0.00017744,2]
[358106555,1744723838977,-176.25314982,0.00017767,2]
[358106556,1744723838986,-165.46756734,0.00017773,2]
[358106557,1744723838996,-502.72153642,0.00017773,2]
[358106558,1744723839005,-500.0,0.00017773,2]
[358106559,1744723839015,-358.66787997,0.00017773,2]
[358106560,1744723839025,-161.04467997,0.00017773,2]
[358106561,1744723839035,-500.0,0.00017773,2]
[358106562,1744723839050,-507.98354872,0.00017773,2]
[358106563,1744723839065,-161.77303684,0.00017773,2]
[358106564,1744723839075,-500.0,0.00017773,2]
[358106565,1744723839086,-500.0,0.00017773,2]
[358106566,1744723839096,-161.94,0.0001779,2]
[358106567,1744723839106,-161.94,0.0001779,2]
[358106568,1744723839116,-161.94,0.0001779,2]
[358106569,1744723839125,-161.94,0.0001779,2]
[358106570,1744723839135,-161.94,0.0001779,2]
[358106571,1744723839146,-161.94,0.0001779,2]
[358106572,1744723839155,-161.94,0.0001779,2]
[358106573,1744723839164,-161.94,0.0001779,2]
[358106574,1744723839174,-161.94,0.0001779,2]
[358106575,1744723839184,-161.94,0.0001779,2]
[358106576,1744723839194,-183.11311091,0.00017799,2]
[358106577,1744723839204,-187.18310833,0.00017799,2]
[358106578,1744723839213,-463.03567596,0.00017799,2]
[358106579,1744723839223,-500.0,0.00017799,2]
[358106580,1744723839234,-243.45,0.00017799,2]
[358106581,1744723839244,-500.0,0.00017799,2]
[358106582,1744723839253,-500.0,0.00017799,2]
[358106583,1744723839263,-500.0,0.00017799,2]
[358106584,1744723839272,-500.0,0.00017799,2]
[358106585,1744723839281,-211.53,0.00017799,2]
[358106586,1744723839291,-500.0,0.00017799,2]
[358106587,1744723839301,-500.0,0.00017799,2]
[358106588,1744723839313,-500.0,0.00017799,2]
[358106589,1744723839323,-156.34320295,0.00017799,2]
[358106590,1744723839332,-500.0,0.00017799,2]
[358106591,1744723839342,-500.0,0.00017799,2]
[358106592,1744723839351,-500.0,0.00017799,2]
[358106593,1744723839361,-500.0,0.00017799,2]
[358106594,1744723839370,-500.0,0.00017799,2]
[358106595,1744723839380,-500.0,0.00017799,2]
[358106596,1744723839390,-500.0,0.00017799,2]
[358106597,1744723839399,-500.0,0.00017799,2]
[358106598,1744723839407,-523.57679509,0.00017799,2]
[358106599,1744723839418,-500.0,0.00017799,2]
[358106600,1744723839429,-500.0,0.00017799,2]
[358106601,1744723839438,-381.14,0.00017799,2]
[358106602,1744723839447,-187.75974797,0.00017799,2]
[358106603,1744723839457,-500.0,0.00017799,2]
[358106604,1744723839466,-178.64796765,0.00017799,2]
[358106605,1744723839475,-200.0,0.00017799,2]
[358106606,1744723839485,-500.0,0.00017799,2]
[358106607,1744723839494,-500.0,0.00017799,2]
[358106608,1744723839504,-500.0,0.00017799,2]
[358106609,1744723839513,-524.39,0.00017799,2]
[358106610,1744723839522,-500.0,0.00017799,2]
[358106611,1744723839533,-500.0,0.00017799,2]
[358106612,1744723839542,-500.0,0.00017799,2]
[358106613,1744723839552,-500.0,0.00017799,2]
[358106614,1744723839563,-500.0,0.00017799,2]
[358106615,1744723839572,-500.0,0.00017799,2]
[358106616,1744723839581,-500.0,0.00017799,2]
[358106617,1744723839591,-500.18897332,0.00017799,2]
[358106618,1744723839600,-500.0,0.00017799,2]
[358106619,1744723839610,-500.0,0.00017799,2]
[358106620,1744723839620,-500.0,0.00017799,2]
[358106621,1744723839629,-500.0,0.00017799,2]
[358106622,1744723839639,-500.0,0.00017799,2]
[358106623,1744723839649,-500.0,0.00017799,2]
[358106624,1744723839660,-500.0,0.00017799,2]
[358106625,1744723839669,-500.0,0.00017799,2]
[358106626,1744723839679,-500.0,0.00017799,2]
[358106627,1744723839691,-500.0,0.00017799,2]
[358106628,1744723839702,-500.0,0.00017799,2]
[358106629,1744723839714,-500.0,0.00017799,2]
[358106630,1744723839725,-500.0,0.00017799,2]
[358106631,1744723839735,-500.0,0.00017799,2]
[358106632,1744723839746,-500.0,0.00017799,2]
[358106633,1744723839756,-500.0,0.00017799,2]
[358106634,1744723839766,-500.0,0.00017799,2]
[358106635,1744723839775,-500.0,0.00017799,2]
[358106636,1744723839785,-500.0,0.00017799,2]
[358106637,1744723839796,-500.0,0.00017799,2]
[358106638,1744723839805,-568.56,0.00017799,2]
[358106639,1744723839815,-500.0,0.00017799,2]
[358106640,1744723839824,-500.0,0.00017799,2]
[358106641,1744723839835,-193.16,0.00017799,2]
[358106642,1744723839846,-500.0,0.00017799,2]
[358106643,1744723839857,-500.0,0.00017799,2]
[358106644,1744723839867,-500.0,0.00017799,2]
[358106645,1744723839876,-500.0,0.00017799,2]
[358106646,1744723839886,-500.0,0.00017799,2]
[358106647,1744723839895,-155.1566903,0.00017799,2]
[358106648,1744723839905,-500.0,0.00017799,2]
[358106649,1744723839915,-500.0,0.00017799,2]
[358106650,1744723839924,-150.0,0.00017799,2]
[358106651,1744723839934,-500.0,0.00017799,2]
[358106652,1744723839943,-1073.92,0.00017799,2]
[358106653,1744723839952,-1073.92,0.00017799,2]
[358106654,1744723839962,-1073.92,0.00017799,2]
[358106655,1744723839972,-626.18646801,0.00017799,2]
[358106656,1744723839982,-282.78264585,0.00017799,2]
[358106657,1744723839992,-500.0,0.00017799,2]
[358106658,1744723840002,-124765.60300103,0.000178,2]
[358106659,1744723840015,-758.79,0.000178,2]
[358106661,1744723840027,-1772.36977612,0.000178,2]
[358106663,1744723840038,-1897.746352,0.000178,2]
[358106664,1744723840050,-313430.52307108,0.000178,2]
[358106665,1744723840063,-261251.64911805,0.000178,2]
[358106666,1744723840073,-500.0,0.000178,2]
[358106667,1744723840083,-500.0,0.000178,2]
[358106668,1744723840094,-150.0,0.000178,2]
[358106669,1744723840104,-500.0,0.000178,2]
[358106670,1744723840114,-500.0,0.000178,2]
[358106672,1744723840124,-156.7467538,0.0001782,2]
[358106673,1744723840134,-176.25314982,0.00017833,2]
[358106674,1744723840143,-5206.93737659,0.00017861,2]
[358106675,1744723840155,-1599.20000014,0.00017861,2]
[358106679,1744723840422,-1999.20541905,0.00017861,2]
[358106680,1744723840709,-539.04520587,0.00017861,2]
[358106700,1744723843273,-758.57759602,0.00017767,2]
[358106701,1744723843285,-1618.75368924,0.00017767,2]
[358106703,1744723843297,-3250.57138853,0.00017767,2]
[358106706,1744723845513,-1074.72250184,0.00017767,2]
[358106707,1744723845523,-4769.2761863,0.00017861,2]
[358106708,1744723845533,-500.0,0.00017899,2]
[358106709,1744723845542,-507.2,0.00017899,2]
[358106710,1744723845551,-6268.6552,0.000179,2]
[358106711,1744723845561,-4028.14611186,0.000179,2]
[358106713,1744723846306,-3000.0,0.000179,2]
[358106714,1744723846320,-299.79648814,0.000179,2]
[358106715,1744723846329,-435.7175,0.000179,2]
[358106716,1744723846339,-176.25314982,0.000179,2]
[358106717,1744723846349,-173.81361329,0.000179,2]
[358106718,1744723846358,-431.0,0.00017973,2]
[358106719,1744723846368,-475.0,0.00017973,2]
[358106720,1744723846377,-538.88120019,0.00017973,2]
[358106721,1744723846387,-500.0,0.00017973,2]
[358106722,1744723846397,-214.21878037,0.00017973,2]
[358106723,1744723846407,-159.65979125,0.00017973,2]
[358106724,1744723846417,-160.02610391,0.00017973,2]
[358106725,1744723846427,-500.0,0.00017973,2]
[358106726,1744723846437,-500.0,0.00017973,2]
[358106727,1744723846448,-501.61566963,0.00017973,2]
[358106728,1744723846458,-500.0,0.00017973,2]
[358106729,1744723846468,-500.0,0.00017973,2]
[358106730,1744723846478,-153.33111541,0.00017973,2]
[358106731,1744723846488,-500.0,0.00017973,2]
[358106732,1744723846498,-500.0,0.00017973,2]
[358106733,1744723846508,-500.0,0.00017973,2]
[358106734,1744723846518,-501.94072646,0.00017973,2]
[358106735,1744723846527,-500.0,0.00017973,2]
[358106736,1744723846537,-500.0,0.00017973,2]
[358106737,1744723846547,-505.28822684,0.00017973,2]
[358106738,1744723846557,-259.90621617,0.00017973,2]
[358106739,1744723846568,-500.0,0.00017973,2]
[358106740,1744723846577,-500.0,0.00017973,2]
[358106741,1744723846587,-162.84952729,0.00017973,2]
[358106742,1744723846598,-500.0,0.00017973,2]
[358106743,1744723846607,-159.6635326,0.00017973,2]
[358106744,1744723846616,-162.06482235,0.00017973,2]
[358106745,1744723846626,-314.39809553,0.00017973,2]
[358106746,1744723846636,-500.0,0.00017973,2]
[358106747,1744723846645,-500.0,0.00017973,2]
[358106748,1744723846655,-500.0,0.00017973,2]
[358106749,1744723846664,-507.53995681,0.00017973,2]
[358106750,1744723846674,-152.73641665,0.00017973,2]
[358106751,1744723846684,-204.49614819,0.00017973,2]
[358106752,1744723846694,-506.81622514,0.00017973,2]
[358106753,1744723846705,-500.0,0.00017973,2]
[358106754,1744723846716,-505.00166301,0.00017973,2]
[358106755,1744723846726,-502.39419378,0.00017973,2]
[358106756,1744723846736,-668.65185757,0.00017989,2]
[358106757,1744723846747,-207.4,0.00017989,2]
[358106759,1744723846758,-344.48874434,0.0001799,2]
[358106760,1744723846768,-344.48874434,0.0001799,2]
[358106761,1744723846779,-344.48874434,0.0001799,2]
[358106762,1744723846789,-500.0,0.00017999,2]
[358106763,1744723846799,-471.47510692,0.00017999,2]
[358106764,1744723846809,-510.38379118,0.00017999,2]
[358106765,1744723846820,-500.0,0.00017999,2]
[358106766,1744723846830,-513.10596433,0.00017999,2]
[358106767,1744723846840,-507.41322393,0.00017999,2]
[358106768,1744723846850,-500.0,0.00017999,2]
[358106769,1744723846860,-1000.0,0.00017999,2]
[358106770,1744723846870,-150.0,0.00017999,2]
[358106771,1744723846880,-500.0,0.00017999,2]
[358106772,1744723846891,-500.0,0.00017999,2]
[358106773,1744723846901,-150.0,0.00017999,2]
[358106774,1744723846911,-150.0,0.00017999,2]
[358106775,1744723846922,-500.0,0.00017999,2]
[358106776,1744723846931,-358.6435958,0.00017999,2]
[358106777,1744723846942,-500.0,0.00017999,2]
[358106778,1744723846952,-500.0,0.00017999,2]
[358106779,1744723846962,-2069.0,0.00017999,2]
[358106780,1744723846973,-500.0,0.00017999,2]
[358106781,1744723846982,-1404.0,0.00017999,2]
[358106782,1744723846992,-500.0,0.00017999,2]
[358106783,1744723847002,-179.83548135,0.00017999,2]
[358106784,1744723847011,-500.0,0.00017999,2]
[358106785,1744723847021,-500.0,0.00017999,2]
[358106786,1744723847031,-500.0,0.00017999,2]
[358106787,1744723847040,-500.0,0.00017999,2]
[358106788,1744723847050,-500.0,0.00017999,2]
[358106789,1744723847059,-500.0,0.00017999,2]
[358106790,1744723847070,-500.0,0.00017999,2]
[358106791,1744723847080,-500.0,0.00017999,2]
[358106792,1744723847089,-500.0,0.00017999,2]
[358106793,1744723847099,-500.0,0.00017999,2]
[358106794,1744723847109,-500.0,0.00017999,2]
[358106795,1744723847118,-500.0,0.00017999,2]
[358106796,1744723847128,-500.0,0.00017999,2]
[358106797,1744723847139,-500.0,0.00017999,2]
[358106798,1744723847149,-500.0,0.00017999,2]
[358106799,1744723847159,-500.0,0.00017999,2]
[358106800,1744723847169,-500.0,0.00017999,2]
[358106801,1744723847179,-500.0,0.00017999,2]
[358106802,1744723847189,-500.0,0.00017999,2]
[358106803,1744723847198,-256.71,0.00017999,2]
[358106804,1744723847208,-500.0,0.00017999,2]
[358106805,1744723847218,-527.84307565,0.00017999,2]
[358106806,1744723847228,-213.89587466,0.00017999,2]
[358106807,1744723847239,-500.0,0.00017999,2]
[358106808,1744723847248,-500.0,0.00017999,2]
[358106809,1744723847258,-500.0,0.00017999,2]
[358106810,1744723847268,-500.0,0.00017999,2]
[358106811,1744723847277,-500.0,0.00017999,2]
[358106812,1744723847287,-500.0,0.00017999,2]
[358106813,1744723847296,-525.99799707,0.00017999,2]
[358106814,1744723847306,-524.63404989,0.00017999,2]
[358106815,1744723847318,-500.0,0.00017999,2]
[358106816,1744723847327,-500.0,0.00017999,2]
[358106817,1744723847336,-500.0,0.00017999,2]
[358106818,1744723847345,-500.0,0.00017999,2]
[358106819,1744723847355,-500.0,0.00017999,2]
[358106820,1744723847365,-514.68407597,0.00017999,2]
[358106821,1744723847375,-500.0,0.00017999,2]
[358106822,1744723847385,-500.0,0.00017999,2]
[358106823,1744723847395,-500.0,0.00017999,2]
[358106824,1744723847405,-500.0,0.00017999,2]
[358106825,1744723847414,-500.0,0.00017999,2]
[358106826,1744723847423,-500.0,0.00017999,2]
[358106827,1744723847433,-500.0,0.00017999,2]
[358106828,1744723847442,-500.0,0.00017999,2]
[358106829,1744723847451,-500.0,0.00017999,2]
[358106830,1744723847463,-500.0,0.00017999,2]
[358106831,1744723847476,-500.0,0.00017999,2]
[358106832,1744723847491,-500.0,0.00017999,2]
[358106833,1744723847504,-500.0,0.00017999,2]
[358106834,1744723847516,-500.0,0.00017999,2]
[358106835,1744723847527,-500.0,0.00017999,2]
[358106836,1744723847539,-500.0,0.00017999,2]
[358106837,1744723847551,-500.0,0.00017999,2]
[358106838,1744723847564,-500.0,0.00017999,2]
[358106839,1744723847576,-500.0,0.00017999,2]
[358106840,1744723847589,-325.12618709,0.00017999,2]
[358106841,1744723847600,-332.49907933,0.00017999,2]
[358106842,1744723847614,-500.0,0.00017999,2]
[358106843,1744723847626,-500.0,0.00017999,2]
[358106844,1744723847639,-500.0,0.00017999,2]
[358106845,1744723847651,-500.0,0.00017999,2]
[358106846,1744723847662,-553.05804531,0.00017999,2]
[358106847,1744723847672,-500.0,0.00017999,2]
[358106848,1744723847685,-500.0,0.00017999,2]
[358106849,1744723847697,-447.86,0.00017999,2]
[358106850,1744723847714,-500.0,0.00017999,2]
[358106851,1744723847727,-500.0,0.00017999,2]
[358106852,1744723847739,-500.0,0.00017999,2]
[358106853,1744723847752,-411.37299284,0.00017999,2]
[358106854,1744723847765,-500.0,0.00017999,2]
[358106855,1744723847778,-500.0,0.00017999,2]
[358106856,1744723847792,-647.14,0.00017999,2]
[358106857,1744723847804,-500.0,0.00017999,2]
[358106858,1744723847817,-500.0,0.00017999,2]
[358106859,1744723847829,-500.0,0.00017999,2]
[358106860,1744723847842,-500.0,0.00017999,2]
[358106861,1744723847854,-500.0,0.00017999,2]
[358106862,1744723847867,-500.0,0.00017999,2]
[358106863,1744723847879,-500.0,0.00017999,2]
[358106864,1744723847891,-500.0,0.00017999,2]
[358106865,1744723847903,-500.0,0.00017999,2]
[358106866,1744723847915,-500.0,0.00017999,2]
[358106867,1744723847927,-500.0,0.00017999,2]
[358106868,1744723847939,-500.0,0.00017999,2]
[358106869,1744723847952,-500.0,0.00017999,2]
[358106870,1744723847965,-500.0,0.00017999,2]
[358106871,1744723847977,-500.0,0.00017999,2]
[358106872,1744723847988,-500.0,0.00017999,2]
[358106873,1744723848001,-500.0,0.00017999,2]
[358106874,1744723848011,-500.0,0.00017999,2]
[358106875,1744723848021,-500.0,0.00017999,2]
[358106876,1744723848033,-391.78291331,0.00017999,2]
[358106877,1744723848045,-500.0,0.00017999,2]
[358106878,1744723848058,-500.0,0.00017999,2]
[358106879,1744723848075,-500.0,0.00017999,2]
[358106880,1744723848088,-500.0,0.00017999,2]
[358106881,1744723848099,-245.79,0.00017999,2]
[358106882,1744723848110,-500.0,0.00017999,2]
[358106883,1744723848121,-312.94,0.00017999,2]
[358106884,1744723848133,-500.0,0.00017999,2]
[358106885,1744723848146,-500.0,0.00017999,2]
[358106886,1744723848159,-500.0,0.00017999,2]
[358106887,1744723848173,-507.34991247,0.00017999,2]
[358106888,1744723848185,-150.0,0.00017999,2]
[358106889,1744723848197,-150.0,0.00017999,2]
[358106890,1744723848208,-150.0,0.00017999,2]
[358106891,1744723848220,-150.0,0.00017999,2]
[358106892,1744723848231,-150.0,0.00017999,2]
[358106893,1744723848243,-150.0,0.00017999,2]
[358106894,1744723848254,-150.0,0.00017999,2]
[358106895,1744723848265,-150.0,0.00017999,2]
[358106896,1744723848276,-150.0,0.00017999,2]
[358106897,1744723848287,-1073.92,0.00017999,2]
[358106898,1744723848299,-1073.92,0.00017999,2]
[358106899,1744723848311,-1073.92,0.00017999,2]
[358106900,1744723848323,-1073.92,0.00017999,2]
[358106901,1744723848336,-1073.92,0.00017999,2]
[358106902,1744723848348,-1073.92,0.00017999,2]
[358106903,1744723848360,-1073.92,0.00017999,2]
[358106904,1744723848371,-1073.92,0.00017999,2]
[358106905,1744723848383,-1073.92,0.00017999,2]
[358106906,1744723848394,-1073.92,0.00017999,2]
[358106907,1744723848405,-1073.92,0.00017999,2]
[358106908,1744723848416,-1073.92,0.00017999,2]
[358106909,1744723848428,-1073.92,0.00017999,2]
[358106910,1744723848439,-1073.92,0.00017999,2]
[358106911,1744723848450,-1073.92,0.00017999,2]
[358106912,1744723848462,-1073.92,0.00017999,2]
[358106913,1744723848473,-1073.92,0.00017999,2]
[358106914,1744723848484,-1073.92,0.00017999,2]
[358106915,1744723848494,-1073.92,0.00017999,2]
[358106916,1744723848505,-1073.92,0.00017999,2]
[358106917,1744723848516,-1073.95,0.00017999,2]
[358106918,1744723848527,-1234458.25431924,0.00018,2]
[358106919,1744723848549,-4064.28952,0.00018,2]
[358106920,1744723848563,-804.05490006,0.00018,2]
[358106921,1744723848586,-6702.62517563,0.00017789,2]
[358106922,1744723848597,-817.6013157,0.00018,2]
[358106923,1744723848610,-1041.98334023,0.00018,2]
[358106924,1744723848623,-1398.88022365,0.00018,2]
[358106925,1744723848649,-549.97235173,0.00018,2]
[358106926,1744723848668,-36860.56698001,0.00018,2]
[358106927,1744723921664,-390.46218679,0.00017532,2]
[358106929,1744723949877,185.25,0.00017477,2]
[358106930,1744724011790,155.76,0.00016929,2]
[358106931,1744724013155,155.76,0.00025393,120]
[358106933,1744724128430,1000.0,0.00016929,2]
[358106934,1744724164168,500.0,0.000168,2]
[358106935,1744724178424,144617.42326631,0.00027,30]
[358106936,1744724254570,3820.8,0.00017367,2]
[358106937,1744724369714,1348.06,0.0001545,2]
[358106938,1744724392230,162.81,0.00013864,2]
[358106939,1744724466743,1149.23,0.00017302,2]
[358106940,1744724700404,250.0,0.00017247,2]
[358106941,1744724727893,250.0,0.00017266,2]
[358106942,1744724731032,441.0,0.00025,30]
[358106943,1744724786962,2974.17,0.00017266,2]
[358106944,1744724797755,163.74,0.00017266,2]
[358106945,1744724894924,169.70365794,0.000179,3]
[358106946,1744724910968,160.0,0.00017,10]
[358106949,1744725025087,197.98760092,0.000179,3]
[358106956,1744725031518,-648.91781321,0.00017532,2]
[358106957,1744725031529,-417.20064338,0.00017672,2]
[358106958,1744725031539,-300.0,0.00017699,2]
[358106959,1744725031548,-300.0,0.00017699,2]
[358106960,1744725031558,-3686.34845267,0.000177,2]
[358106961,1744725031570,-2025.35804733,0.000177,2]
[358106962,1744725031580,-175.11192867,0.000177,2]
[358106963,1744725031593,-79.68657133,0.000177,2]
[358106964,1744725031603,-500.0,0.000177,2]
[358106965,1744725031612,-11215.0379,0.000177,2]
[358106966,1744725031622,-619.027,0.000177,2]
[358106967,1744725031632,-1020.06,0.000177,2]
[358106968,1744725031643,-1348.06,0.00017714,2]
[358106969,1744725031652,-8621.79953971,0.00017789,2]
[358106970,1744725031664,-1455.57,0.00017789,2]
[358106971,1744725031676,-2660.38628844,0.00017789,2]
[358106972,1744725031686,-500.0,0.00017799,2]
[358106973,1744725031695,-500.0,0.00017799,2]
[358106974,1744725031705,-500.0,0.00017799,2]
[358106975,1744725031715,-500.0,0.00017799,2]
[358106976,1744725031724,-500.0,0.00017799,2]
[358106977,1744725031735,-500.0,0.00017799,2]
[358106978,1744725031744,-500.0,0.00017799,2]
[358106979,1744725031754,-500.0,0.00017799,2]
[358106980,1744725031763,-189.18566208,0.00017799,2]
[358106981,1744725031786,-310.81433792,0.00017799,2]
[358106982,1744725031796,-1000.0,0.00017799,2]
[358106983,1744725031805,-1000.0,0.00017799,2]
[358106984,1744725031814,-500.0,0.00017799,2]
[358106986,1744725031824,-500.0,0.00017799,2]
[358106988,1744725031835,-500.0,0.00017799,2]
[358106990,1744725031845,-500.0,0.00017799,2]
[358106992,1744725031855,-500.0,0.00017799,2]
[358106994,1744725031865,-500.0,0.00017799,2]
[358106996,1744725031875,-500.0,0.00017799,2]
[358106998,1744725031885,-500.0,0.00017799,2]
[358107000,1744725031895,-500.0,0.00017799,2]
[358107002,1744725031905,-500.0,0.00017799,2]
[358107004,1744725031915,-500.0,0.00017799,2]
[358107007,1744725031924,-500.0,0.00017799,2]
[358107009,1744725031933,-523.6694656,0.00017799,2]
[358107011,1744725031943,-500.0,0.00017799,2]
[358107013,1744725031953,-500.0,0.00017799,2]
[358107015,1744725031963,-503.02935106,0.00017799,2]
[358107016,1744725031973,-500.0,0.00017799,2]
[358107017,1744725031983,-500.0,0.00017799,2]
[358107018,1744725031993,-500.0,0.00017799,2]
[358107019,1744725032003,-500.0,0.00017799,2]
[358107020,1744725032013,-500.0,0.00017799,2]
[358107021,1744725032022,-500.0,0.00017799,2]
[358107022,1744725032032,-505.17833887,0.00017799,2]
[358107023,1744725032042,-500.0,0.00017799,2]
[358107024,1744725032052,-515.67459027,0.00017799,2]
[358107025,1744725032061,-500.0,0.00017799,2]
[358107026,1744725032072,-521.43367728,0.00017799,2]
[358107027,1744725032088,-500.0,0.00017799,2]
[358107028,1744725032098,-500.0,0.00017799,2]
[358107029,1744725032109,-543.90875041,0.00017799,2]
[358107030,1744725032118,-500.0,0.00017799,2]
[358107031,1744725032128,-500.0,0.00017799,2]
[358107032,1744725032137,-500.0,0.00017799,2]
[358107033,1744725032147,-534.5910403,0.00017799,2]
[358107034,1744725032158,-500.0,0.00017799,2]
[358107035,1744725032169,-500.0,0.00017799,2]
[358107036,1744725032179,-215.2,0.00017799,2]
[358107037,1744725032189,-1983.0,0.00017799,2]
[358107038,1744725032199,-150.0,0.00017799,2]
[358107039,1744725032209,-1345.0,0.00017799,2]
[358107040,1744725032218,-540.00210864,0.00017799,2]
[358107041,1744725032227,-634.15000857,0.00017799,2]
[358107042,1744725032237,-500.0,0.00017799,2]
[358107043,1744725032246,-500.0,0.00017799,2]
[358107044,1744725032257,-522.18861274,0.00017799,2]
[358107045,1744725032268,-500.0,0.00017799,2]
[358107046,1744725032278,-500.0,0.00017799,2]
[358107047,1744725032288,-500.0,0.00017799,2]
[358107048,1744725032298,-500.0,0.00017799,2]
[358107049,1744725032307,-500.0,0.00017799,2]
[358107050,1744725032317,-150.0,0.00017799,2]
[358107051,1744725032329,-513.07947964,0.00017799,2]
[358107052,1744725032339,-500.0,0.00017799,2]
[358107053,1744725032348,-150.0,0.00017799,2]
[358107054,1744725032358,-150.0,0.00017799,2]
[358107055,1744725032367,-500.0,0.00017799,2]
[358107056,1744725032376,-150.0,0.00017799,2]
[358107057,1744725032386,-156.7467539,0.0001782,2]
[358107058,1744725032396,-500.0,0.00017836,2]
[358107059,1744725032406,-2500.0,0.00017899,2]
[358107060,1744725032415,-8136.22581771,0.00017899,2]
[358107061,1744725032425,-3371.21552271,0.00017899,2]
[358107062,1744725032439,-4765.01029494,0.00017899,2]
[358107063,1744725032448,-8136.22581765,0.00017899,2]
[358107064,1744725032458,-3943.86488742,0.00017899,2]
[358107065,1744725032470,-314.61115765,0.00017899,2]
[358107066,1744725032482,-3877.74977258,0.00017899,2]
[358107067,1744725032491,-8136.22581765,0.00017899,2]
[358107068,1744725032500,-8136.22581765,0.000179,2]
[358107069,1744725032510,-8136.22581765,0.000179,2]
[358107070,1744725032519,-8136.22581765,0.000179,2]
[358107071,1744725032528,-8136.22581765,0.000179,2]
[358107072,1744725032538,-8138.7127,0.000179,2]
[358107073,1744725032548,-883.43758529,0.000179,2]
[358107074,1744725032557,-8136.22581765,0.000179,2]
[358107075,1744725032566,-1000.0,0.000179,2]
[358107076,1744725032576,-1000.0,0.000179,2]
[358107077,1744725032585,-557.0,0.000179,2]
[358107078,1744725032595,-301.64424214,0.00017973,2]
[358107079,1744725032604,-226.43210049,0.00017973,2]
[358107080,1744725032619,-273.56789951,0.00017973,2]
[358107081,1744725032630,-500.0,0.00017973,2]
[358107082,1744725032639,-501.53143593,0.00017973,2]
[358107083,1744725032649,-403.44864785,0.00017973,2]
[358107084,1744725032659,-668.65185757,0.00017989,2]
[358107085,1744725032668,-207.4,0.00017989,2]
[358107086,1744725032677,-500.0,0.00017999,2]
[358107087,1744725032685,-489.39448947,0.00017999,2]
[358107088,1744725032694,-500.0,0.00017999,2]
[358107089,1744725032703,-500.0,0.00017999,2]
[358107090,1744725032712,-500.0,0.00017999,2]